bitfinex/quotes_ETHUSD_20250906
["timestamp","ask_amount","ask_price","bid_price","bid_amount"]
[1757182539682,5.852,4289.1,4289.0,0.3052]
[1757182540039,5.852,4289.1,4289.0,0.7618]
[1757182540682,5.852,4289.1,4289.0,1.2413]
[1757182540857,1.792,4289.1,4289.0,1.2413]
[1757182541065,5.851,4289.1,4289.0,3.69947581]
[1757182541250,6.00857763,4289.1,4289.0,3.69947581]
[1757182541989,6.00857763,4289.1,4289.0,3.57684581]
[1757182542283,6.00657763,4289.1,4289.0,3.57684581]
[1757182543590,16.33046837,4289.1,4289.0,0.004]
[1757182543892,19.54777747,4289.1,4289.0,0.004]
[1757182544184,21.1478664,4289.1,4289.0,0.004]
[1757182545222,20.9305573,4289.1,4289.0,0.004]
[1757182546575,20.6191573,4289.1,4289.0,0.004]
[1757182547622,14.19325801,4289.1,4289.0,0.004]
[1757182548831,13.73325801,4289.1,4289.0,0.004]
[1757182549608,13.73015801,4289.1,4289.0,0.004]
[1757182550217,9.67315801,4289.1,4289.0,0.004]
[1757182550417,12.94915801,4289.1,4289.0,0.004]
[1757182550582,12.94715801,4289.1,4289.0,0.004]
[1757182551178,12.95025801,4289.1,4289.0,0.004]
[1757182551978,8.88425801,4289.1,4289.0,0.004]
[1757182552204,12.94725801,4289.1,4289.0,0.004]
[1757182555221,13.16389605,4289.1,4289.0,0.004]
[1757182557831,0.37731567,4289.1,4289.0,0.3029]
[1757182558126,4.21457763,4289.1,4289.0,1.239]
[1757182558304,4.21457763,4289.1,4289.0,3.57054581]
[1757182558494,4.21457763,4289.1,4289.0,3.68654581]
[1757182558694,4.21457763,4289.1,4289.0,4.29086526]
[1757182560633,4.21457763,4289.1,4289.0,0.004]
[1757182560634,5.00967763,4289.1,4289.0,0.004]
[1757182560803,10.55814012,4289.1,4289.0,0.004]
[1757182562031,9.76304012,4289.1,4289.0,0.004]
[1757182562337,9.78114012,4289.1,4289.0,0.004]
[1757182562538,6.92039584,4289.1,4289.0,0.004]
[1757182562710,10.99039584,4289.1,4289.0,0.004]
[1757182563109,11.20793485,4289.1,4289.0,0.004]
[1757182563335,11.66793485,4289.1,4289.0,0.004]
[1757182563498,11.97933485,4289.1,4289.0,0.004]
[1757182565911,11.66793485,4289.1,4289.0,0.004]
[1757182567840,11.66990644,4289.1,4289.0,0.004]
[1757182568622,11.20680644,4289.1,4289.0,0.004]
[1757182568807,11.20680644,4289.1,4289.0,1.239]
[1757182568808,0.59405927,4289.1,4289.0,1.239]
[1757182569007,4.65305927,4289.1,4289.0,1.239]
[1757182569504,4.43481845,4289.1,4289.0,1.239]
[1757182570744,4.43281845,4289.1,4289.0,1.239]
[1757182570914,9.23324354,4289.1,4289.0,0.004]
[1757182571112,5.33154581,4289.0,4288.8,0.025]
[1757182571334,4.29179177,4288.9,4288.8,0.025]
[1757182571531,6.80611015,4288.9,4288.8,0.025]
[1757182571707,8.22715192,4288.9,4288.8,0.025]
[1757182576165,4.16495192,4288.9,4288.8,0.025]
[1757182576465,0.39500422,4288.9,4288.8,1.2775]
[1757182576764,4.44700422,4288.9,4288.8,1.2775]
[1757182576965,0.39500422,4288.9,4288.8,1.2775]
[1757182577263,4.44700422,4288.9,4288.8,3.60915454]
[1757182578309,4.44500422,4288.9,4288.8,3.60915454]
[1757182578808,0.39500422,4288.9,4288.8,3.60915454]
[1757182579008,4.44400422,4288.9,4288.8,4.20364545]
[1757182579210,4.44300422,4288.9,4288.8,4.20364545]
[1757182579842,0.39500422,4288.9,4288.8,4.20364545]
[1757182580040,0.39500422,4288.9,4288.8,1.2775]
[1757182580240,4.45800422,4288.9,4288.8,1.2775]
[1757182581351,4.45800422,4288.9,4288.8,0.025]
[1757182582149,6.78960439,4288.9,4288.8,0.025]
[1757182582313,7.71640878,4288.9,4288.8,0.025]
[1757182582517,8.18220878,4288.9,4288.8,0.025]
[1757182583174,8.49360878,4288.9,4288.8,0.025]
[1757182585895,8.18220878,4288.9,4288.8,0.025]
[1757182587691,7.71640878,4288.9,4288.8,0.025]
[1757182587857,2.72660439,4288.9,4288.8,0.3391]
[1757182588060,6.78160439,4288.9,4288.8,0.3391]
[1757182590318,2.72660439,4288.9,4288.8,0.3391]
[1757182590727,6.77560439,4288.9,4288.8,0.3391]
[1757182591923,8.56960439,4288.9,4288.8,0.3391]
[1757182592217,9.69939024,4288.9,4288.8,0.025]
[1757182592524,10.16519024,4288.9,4288.8,0.025]
[1757182593304,9.69539024,4288.9,4288.8,0.025]
[1757182595468,9.68929024,4288.9,4288.8,0.3391]
[1757182595666,9.68929024,4288.9,4288.8,0.7807]
[1757182596001,9.68929024,4288.9,4288.8,0.3391]
[1757182596191,9.68929024,4288.9,4288.8,0.025]
[1757182597972,9.68929024,4288.9,4288.8,0.029]
[1757182598592,9.69239024,4288.9,4288.8,0.029]
[1757182600475,9.68929024,4288.9,4288.8,0.029]
[1757182601325,9.68948883,4288.9,4288.8,0.029]
[1757182601755,2.18920281,4288.9,4288.8,0.318]
[1757182601941,6.22520281,4288.9,4288.8,1.2334]
[1757182602134,8.55680298,4288.9,4288.8,1.2334]
[1757182602716,8.55380298,4288.9,4288.8,0.766]
[1757182602913,8.55380298,4288.9,4288.8,3.56505454]
[1757182602914,0.39520281,4288.9,4288.8,3.56505454]
[1757182603173,0.17651821,4288.9,4288.8,4.81456651]
[1757182605926,0.17651821,4288.9,4288.8,1.2334]
[1757182606313,0.39500466,4288.9,4288.8,1.2334]
[1757182606613,0.17651821,4288.9,4288.8,1.2334]
[1757182608015,4.5236777,4288.9,4288.8,0.029]
[1757182608219,5.63000383,4288.9,4288.8,0.029]
[1757182608451,5.61269807,4288.9,4288.8,0.029]
[1757182608860,6.06879807,4288.9,4288.8,0.029]
[1757182610956,6.06884626,4288.9,4288.8,0.029]
[1757182614653,6.06887081,4288.9,4288.8,0.029]
[1757182616398,5.61277081,4288.9,4288.8,0.029]
[1757182617504,6.06887081,4288.9,4288.8,0.029]
[1757182617799,9.63267081,4288.9,4288.8,0.029]
[1757182618093,5.60967081,4288.9,4288.8,0.029]
[1757182618295,9.63269645,4288.9,4288.8,0.029]
[1757182618483,9.63169645,4288.9,4288.8,0.029]
[1757182619195,5.60969645,4288.9,4288.8,0.318]
[1757182619396,6.20907591,4288.9,4288.8,1.2334]
[1757182619967,6.20907591,4288.9,4288.8,0.318]
[1757182620172,6.32507591,4288.9,4288.8,0.029]
[1757182620701,8.65977608,4288.9,4288.8,0.029]
[1757182620915,8.65977608,4288.9,4288.8,1.2334]
[1757182620916,2.30507591,4288.9,4288.8,1.2334]
[1757182621194,2.18907591,4288.9,4288.8,1.2334]
[1757182621388,6.21007591,4288.9,4288.8,1.2334]
[1757182626669,6.21007591,4288.9,4288.8,1.2334]
[1757182628974,6.21007591,4288.9,4288.8,3.56505454]
[1757182629370,6.21007591,4288.9,4288.8,1.2334]
[1757182632733,7.11007591,4288.9,4288.8,1.2334]
[1757182633385,7.09607591,4288.9,4288.8,1.2334]
[1757182635034,7.09628029,4288.9,4288.8,1.2334]
[1757182636244,3.08928029,4288.9,4288.8,3.93357465]
[1757182636442,6.87351821,4288.9,4288.8,3.93357465]
[1757182636742,6.87351821,4288.9,4288.8,4.04957465]
[1757182638249,6.87251821,4288.9,4288.8,4.04957465]
[1757182641311,6.87251821,4288.9,4288.8,3.68105454]
[1757182645260,6.87251821,4288.9,4288.8,0.029]
[1757182645261,6.87561821,4288.9,4288.8,0.029]
[1757182645462,7.09426622,4288.9,4288.8,2.36065454]
[1757182645773,6.87561821,4288.9,4288.8,0.029]
[1757182645937,6.87561821,4288.9,4288.8,2.36065454]
[1757182646341,7.09427117,4288.9,4288.8,2.36065454]
[1757182647060,3.08917117,4288.9,4288.8,2.66535454]
[1757182647380,6.86151821,4288.9,4288.8,4.23567374]
[1757182647523,2.87051821,4288.9,4288.8,4.23567374]
[1757182647724,6.86051821,4288.9,4288.8,4.23567374]
[1757182649430,2.87051821,4288.9,4288.8,4.23567374]
[1757182649773,6.86051821,4288.9,4288.8,4.23567374]
[1757182650156,6.85851821,4288.9,4288.8,4.23567374]
[1757182650488,2.87051821,4288.9,4288.8,4.23567374]
[1757182650687,6.85751821,4288.9,4288.8,4.23567374]
[1757182653585,1.07651821,4288.9,4288.8,4.23567374]
[1757182653760,5.06151821,4288.9,4288.8,4.23567374]
[1757182656450,5.06151821,4288.9,4288.8,3.33647374]
[1757182656643,5.06151821,4288.9,4288.8,3.03177374]
[1757182656977,5.06151821,4288.9,4288.8,3.33647374]
[1757182657275,5.06151821,4288.9,4288.8,3.77057374]
[1757182657498,5.06151821,4288.9,4288.8,4.23567374]
[1757182659662,5.06151821,4288.9,4288.8,3.77057374]
[1757182664915,5.53731821,4288.9,4288.8,2.47665454]
[1757182668020,5.84871821,4288.9,4288.8,2.47665454]
[1757182668395,5.53731821,4288.9,4288.8,2.47665454]
[1757182668788,5.06461821,4288.9,4288.8,2.47665454]
[1757182669387,5.06151821,4288.9,4288.8,2.47665454]
[1757182669582,5.06771821,4288.9,4288.8,2.47665454]
[1757182669812,5.54041821,4288.9,4288.8,2.47665454]
[1757182671824,5.06771821,4288.9,4288.8,2.47665454]
[1757182674518,5.54041821,4288.9,4288.8,2.47665454]
[1757182675815,6.61299003,4288.9,4288.8,2.36065454]
[1757182676513,6.30469003,4288.9,4288.8,2.36065454]
[1757182676820,5.05361821,4288.9,4288.8,2.36065454]
[1757182678704,5.05051821,4288.9,4288.8,3.09765454]
[1757182678923,5.05051821,4288.9,4288.8,3.59465454]
[1757182679338,6.04274963,4288.9,4288.8,0.029]
[1757182679493,6.05954963,4288.9,4288.8,0.029]
[1757182679690,6.17238459,4288.9,4288.8,2.36065454]
[1757182679932,5.26934963,4288.9,4288.8,2.36065454]
[1757182683397,5.27244963,4288.9,4288.8,2.36065454]
[1757182684437,5.26934963,4288.9,4288.8,2.36065454]
[1757182685305,5.27554963,4288.9,4288.8,0.029]
[1757182686337,5.27554963,4288.9,4288.8,2.36065454]
[1757182687644,5.27554963,4288.9,4288.8,0.029]
[1757182687943,5.36058416,4288.9,4288.8,0.029]
[1757182688555,5.36058416,4288.9,4288.8,2.36065454]
[1757182688704,6.59601258,4288.9,4288.8,0.029]
[1757182688909,6.90431258,4288.9,4288.8,0.029]
[1757182689937,9.23591275,4288.9,4288.8,0.029]
[1757182690446,6.90431258,4288.9,4288.8,0.029]
[1757182690666,10.02791275,4288.9,4288.8,0.029]
[1757182698696,10.02758983,4288.9,4288.8,0.029]
[1757182700951,13.02758983,4288.9,4288.8,0.029]
[1757182702666,12.71928983,4288.9,4288.8,0.029]
[1757182704382,12.24658983,4288.9,4288.8,0.029]
[1757182707958,12.74418983,4288.9,4288.8,0.029]
[1757182712356,13.41315169,4288.9,4288.8,0.029]
[1757182712554,13.77418099,4288.9,4288.8,0.029]
[1757182712772,13.77432841,4288.9,4288.8,0.029]
[1757182715952,14.14009734,4288.9,4288.8,0.029]
[1757182718577,13.92155511,4288.9,4288.8,0.029]
[1757182718788,14.14029577,4288.9,4288.8,0.029]
[1757182721691,13.83199577,4288.9,4288.8,0.029]
[1757182723959,21.17029577,4288.9,4288.8,0.029]
[1757182724264,21.17029577,4288.9,4288.5,0.004]
[1757182724265,2.33176327,4288.6,4288.5,0.004]
[1757182724465,14.70738897,4288.6,4288.5,0.004]
[1757182724671,14.94086144,4288.6,4288.5,0.004]
[1757182724866,15.02518483,4288.6,4288.5,0.004]
[1757182726054,14.30349367,4288.6,4288.5,0.004]
[1757182726297,14.30349367,4288.6,4288.5,0.7444]
[1757182727399,14.30347093,4288.6,4288.5,0.7444]
[1757182733392,14.30347093,4288.6,4288.5,0.004]
[1757182734700,14.30347093,4288.6,4288.5,0.7444]
[1757182735078,14.30347093,4288.6,4288.5,0.3111]
[1757182736004,14.30347093,4288.6,4288.5,0.004]
[1757182737502,8.87125586,4288.6,4288.5,0.004]
[1757182737869,8.87125586,4288.6,4288.5,0.7706]
[1757182737870,0.55381954,4288.6,4288.5,0.7706]
[1757182738181,7.54629615,4288.6,4288.5,1.2039]
[1757182740387,4.54629615,4288.6,4288.5,1.2039]
[1757182740770,0.57629615,4288.6,4288.5,1.2039]
[1757182741601,4.54529615,4288.6,4288.5,1.2039]
[1757182742508,0.57629615,4288.6,4288.5,1.2039]
[1757182742915,0.46029615,4288.6,4288.5,4.12289244]
[1757182743089,4.21057823,4288.6,4288.5,4.12289244]
[1757182744374,0.24157823,4288.6,4288.5,4.12289244]
[1757182744573,4.21057823,4288.6,4288.5,4.12289244]
[1757182744786,0.24157823,4288.6,4288.5,4.82400803]
[1757182750894,0.24157823,4288.6,4288.5,4.23683324]
[1757182751293,0.24157823,4288.6,4288.5,3.53571765]
[1757182751999,0.24157823,4288.6,4288.5,3.07621765]
[1757182753423,0.24157823,4288.6,4288.5,2.64291765]
[1757182754142,0.24157823,4288.6,4288.5,3.54771765]
[1757182754486,0.24157823,4288.6,4288.5,3.08761765]
[1757182755523,0.24157823,4288.6,4288.5,3.54771765]
[1757182759901,4.20757823,4288.6,4288.5,4.14768205]
[1757182761422,4.20657823,4288.6,4288.5,4.14768205]
[1757182767109,4.20657823,4288.6,4288.5,4.17100022]
[1757182767110,0.24157823,4288.6,4288.5,4.17100022]
[1757182767354,0.24157823,4288.6,4288.5,4.14768205]
[1757182767655,3.965,4288.8,4288.7,2.3317089]
[1757182767656,0.001,4288.8,4288.7,2.3317089]
[1757182767844,0.001,4288.8,4288.7,7.4992089]
[1757182768853,0.001,4288.8,4288.7,7.59267831]
[1757182774357,0.001,4288.8,4288.7,2.72387831]
[1757182774589,0.001,4288.8,4288.7,2.42517831]
[1757182774785,0.001,4288.8,4288.7,3.80653043]
[1757182775298,0.001,4288.8,4288.7,4.54993043]
[1757182775657,0.001,4288.8,4288.7,3.80653043]
[1757182777603,0.001,4288.8,4288.7,3.92253043]
[1757182782947,0.466,4288.8,4288.5,0.004]
[1757182783305,0.7733,4288.7,4288.5,0.004]
[1757182783866,0.7764,4288.6,4288.5,0.004]
[1757182788837,1.80417541,4288.6,4288.5,0.004]
[1757182789041,4.71255622,4288.6,4288.5,0.004]
[1757182789255,4.69525046,4288.6,4288.5,0.004]
[1757182789755,2.36348719,4288.6,4288.5,0.004]
[1757182790922,1.59328719,4288.6,4288.5,0.004]
[1757182791109,0.7992,4288.6,4288.5,0.004]
[1757182800551,1.01746704,4288.6,4288.5,0.004]
[1757182800749,0.7992,4288.6,4288.5,0.004]
[1757182802143,1.01749984,4288.6,4288.5,0.004]
[1757182804080,0.22549984,4288.6,4288.5,0.004]
[1757182804294,0.001,4288.6,4288.5,3.51941765]
[1757182804578,0.001,4288.6,4288.5,4.76439752]
[1757182804726,0.001,4288.6,4288.5,5.20039752]
[1757182812040,0.001,4288.6,4288.5,4.75489752]
[1757182812250,0.001,4288.6,4288.5,5.24759752]
[1757182817457,0.001,4288.6,4288.5,4.30499752]
[1757182817659,0.001,4288.6,4288.5,3.62591765]
[1757182818059,0.1565,4288.6,4288.5,2.88781765]
[1757182818303,0.6122,4288.6,4288.5,2.45181765]
[1757182818599,0.1565,4288.6,4288.5,2.45181765]
[1757182819859,0.001,4288.6,4288.5,2.45181765]
[1757182820064,0.001,4288.6,4288.5,3.21371765]
[1757182821875,0.001,4288.6,4288.5,4.38077268]
[1757182822394,0.001,4288.6,4288.5,4.47425847]
[1757182824401,0.001,4288.6,4288.5,8.31325847]
[1757182824589,0.001,4288.6,4288.5,8.42925847]
[1757182826898,0.001,4288.6,4288.5,4.02435847]
[1757182827099,0.001,4288.6,4288.5,4.47425847]
[1757182828314,0.001,4288.6,4288.5,7.93555847]
[1757182828616,0.001,4288.6,4288.5,3.21965847]
[1757182829616,0.3034,4288.6,4288.5,3.21965847]
[1757182832025,0.001,4288.6,4288.5,4.47425847]
[1757182832317,0.001,4288.6,4288.5,3.21965847]
[1757182835526,0.1565,4288.6,4288.5,3.21965847]
[1757182835928,0.6122,4288.6,4288.5,2.54530344]
[1757182836090,1.0599,4288.6,4288.5,2.54530344]
[1757182836290,0.1565,4288.6,4288.5,2.54530344]
[1757182836489,0.001,4288.6,4288.5,2.85730344]
[1757182836694,0.001,4288.6,4288.5,3.30720344]
[1757182837010,0.001,4288.6,4288.5,2.54530344]
[1757182843944,1.0563,4288.6,4288.5,2.54530344]
[1757182845224,1.0563,4288.6,4288.5,0.004]
[1757182845445,5.22592975,4288.6,4288.5,0.004]
[1757182845649,5.99338413,4288.6,4288.5,0.004]
[1757182850136,8.3251474,4288.6,4288.5,0.004]
[1757182850573,5.99338413,4288.6,4288.5,0.004]
[1757182851368,8.3251474,4288.6,4288.5,0.004]
[1757182852868,13.75962195,4288.6,4288.5,0.004]
[1757182856280,17.55162195,4288.6,4288.5,0.004]
[1757182856603,17.64514206,4288.6,4288.5,0.004]
[1757182858750,18.01094199,4288.6,4288.5,0.004]
[1757182859364,17.64514206,4288.6,4288.5,0.004]
[1757182859562,12.21066751,4288.6,4288.5,0.004]
[1757182859767,12.93235867,4288.6,4288.5,0.004]
[1757182862697,13.29817049,4288.6,4288.5,0.004]
[1757182863962,12.93235867,4288.6,4288.5,0.004]
[1757182865899,13.29817791,4288.6,4288.5,0.004]
[1757182869412,19.96235867,4288.6,4288.5,0.004]
[1757182870889,19.60132937,4288.6,4288.5,0.004]
[1757182875145,19.96682074,4288.6,4288.5,0.004]
[1757182877172,19.96682074,4288.6,4288.1,0.004]
[1757182877173,3.0,4288.5,4288.1,0.004]
[1757182877326,9.56168383,4288.2,4288.1,0.004]
[1757182877526,24.65369893,4288.2,4288.1,0.004]
[1757182877769,24.47869893,4288.2,4288.1,0.004]
[1757182877925,20.70669893,4288.2,4288.1,0.004]
[1757182878125,25.30873802,4288.2,4288.1,0.004]
[1757182879470,25.76873802,4288.2,4288.1,0.004]
[1757182882735,26.1346021,4288.2,4288.1,0.004]
[1757182883062,25.31394024,4288.2,4288.1,0.004]
[1757182883272,25.6746021,4288.2,4288.1,0.004]
[1757182883570,6.12403516,4288.1,4288.0,0.004]
[1757182883891,7.47084278,4288.1,4288.0,0.4358]
[1757182884265,7.56438388,4288.1,4288.0,0.7214]
[1757182885464,7.56438388,4288.1,4288.0,0.2896]
[1757182885626,7.34608389,4288.1,4288.0,0.2896]
[1757182885826,7.56459727,4288.1,4288.0,0.2896]
[1757182887078,14.59459727,4288.1,4288.0,0.004]
[1757182888535,14.76959727,4288.1,4288.0,0.004]
[1757182890069,15.65789727,4288.1,4288.0,0.004]
[1757182891278,15.22959727,4288.1,4288.0,0.004]
[1757182891988,15.22959727,4288.1,4288.0,1e-08]
[1757182892194,6.24008955,4288.0,4287.9,1e-08]
[1757182892394,6.12425272,4287.7,4287.6,0.004]
[1757182892693,10.94211935,4287.7,4287.6,0.004]
[1757182892993,11.76801448,4287.7,4287.6,0.004]
[1757182893364,11.40211935,4287.7,4287.6,0.004]
[1757182893565,12.05715844,4287.7,4287.6,0.004]
[1757182893766,3.12441591,4287.4,4287.0,0.4318]
[1757182893978,26.28860924,4287.4,4286.8,0.025]
[1757182894190,26.56460348,4287.4,4286.8,0.025]
[1757182894415,26.56460348,4287.4,4286.8,0.4568]
[1757182894710,26.56460348,4287.4,4287.1,0.004]
[1757182894910,26.93052419,4287.4,4287.1,0.004]
[1757182895114,27.69797857,4287.4,4287.1,0.004]
[1757182895282,27.40467857,4287.4,4287.1,0.004]
[1757182896592,27.40469044,4287.4,4287.1,0.004]
[1757182896913,3.12452472,4287.2,4287.1,0.004]
[1757182897219,14.33535573,4287.2,4287.1,0.4358]
[1757182897405,16.54799755,4287.2,4287.1,0.7214]
[1757182900415,44.94271569,4287.2,4287.1,0.004]
[1757182900617,43.94271569,4287.2,4287.1,0.004]
[1757182900822,3.12463354,4287.0,4286.9,0.004]
[1757182901015,25.88090689,4287.0,4286.9,0.004]
[1757182901221,26.22421902,4287.0,4286.9,0.004]
[1757182901418,26.71156358,4287.0,4286.9,0.004]
[1757182901617,33.74156358,4287.0,4286.9,0.004]
[1757182902811,34.03666358,4287.0,4286.9,0.004]
[1757182903790,34.40262508,4287.0,4286.9,0.004]
[1757182904223,34.10752508,4287.0,4286.9,0.004]
[1757182905003,8.31624031,4287.0,4286.9,1.2339]
[1757182905205,11.19252525,4287.0,4286.9,1.2339]
[1757182905414,14.19252525,4287.0,4286.9,1.2339]
[1757182905615,10.974,4287.0,4286.9,1.2339]
[1757182905820,10.71752525,4287.0,4286.9,1.2339]
[1757182909202,6.77352525,4287.0,4286.9,1.2339]
[1757182909415,10.71752525,4287.0,4286.9,1.2339]
[1757182911624,10.71852525,4287.0,4286.9,1.2339]
[1757182913521,11.61852525,4287.0,4286.9,1.2339]
[1757182918373,11.8351023,4287.0,4286.9,1.2339]
[1757182921070,11.8341023,4287.0,4286.9,1.2339]
[1757182921569,11.8341023,4287.0,4286.9,0.3103]
[1757182921863,12.1292023,4287.0,4286.9,0.004]
[1757182922362,11.8341023,4287.0,4286.9,0.3103]
[1757182922564,11.8341023,4287.0,4286.9,1.2339]
[1757182925532,11.8341023,4287.0,4286.9,0.3103]
[1757182927178,7.8931023,4287.0,4286.9,0.3103]
[1757182927384,11.8331023,4287.0,4286.9,0.3103]
[1757182927566,11.8331023,4287.0,4286.9,0.7933]
[1757182927880,11.8331183,4287.0,4286.9,0.7933]
[1757182929081,11.8331183,4287.0,4286.9,0.3103]
[1757182935382,12.1412183,4287.0,4286.9,0.004]
[1757182935672,13.0447183,4287.0,4286.9,0.004]
[1757182936034,12.5697183,4287.0,4286.9,0.004]
[1757182937161,12.1412183,4287.0,4286.9,0.004]
[1757182939055,13.9352183,4287.0,4286.9,0.004]
[1757182941568,14.7272183,4287.0,4286.9,0.004]
[1757182941908,15.1557183,4287.0,4286.9,0.004]
[1757182943097,14.7272183,4287.0,4286.9,0.004]
[1757182943300,14.4191183,4287.0,4286.9,0.2952]
[1757182943490,10.4791183,4287.0,4286.9,1.2242]
[1757182943710,14.4171183,4287.0,4286.9,1.2242]
[1757182944114,14.4171183,4287.0,4286.9,0.7539]
[1757182944910,14.4161183,4287.0,4286.9,0.7539]
[1757182946009,14.4161183,4287.0,4286.9,0.2952]
[1757182946608,14.4161183,4287.0,4286.9,0.7539]
[1757182947828,14.4161183,4287.0,4286.9,0.2952]
[1757182948586,14.4161183,4287.0,4286.9,0.7539]
[1757182948784,9.6871183,4287.0,4286.9,0.7539]
[1757182949012,13.6241183,4287.0,4286.9,3.55688795]
[1757182949789,13.6241183,4287.0,4286.9,4.25841506]
[1757182952329,13.6241183,4287.0,4286.9,3.78811506]
[1757182952330,6.85059305,4287.0,4286.9,3.78811506]
[1757182952533,6.84959305,4287.0,4286.9,4.83282067]
[1757182953029,2.913994,4287.0,4286.9,4.25841506]
[1757182953234,6.849994,4287.0,4286.9,4.25841506]
[1757182955330,6.848994,4287.0,4286.9,4.25841506]
[1757182957302,6.63,4287.0,4286.9,4.25841506]
[1757182957535,6.63,4287.0,4286.9,3.55688795]
[1757182957740,6.63,4287.0,4286.9,4.25835929]
[1757182961646,6.63,4287.0,4286.9,3.55688795]
[1757182961844,6.63,4287.0,4286.9,4.86182743]
[1757182962947,6.629,4287.0,4286.9,4.86182743]
[1757182973991,6.629,4287.0,4286.9,4.39152743]
[1757182974284,6.629,4287.0,4286.9,3.93282743]
[1757182975887,2.695,4287.0,4286.9,3.93282743]
[1757182976049,6.627,4287.0,4286.9,3.93282743]
[1757182977089,6.626,4287.0,4286.9,3.93282743]
[1757182979410,6.9372,4287.0,4286.9,3.64162743]
[1757182979610,7.8824,4287.0,4286.9,0.70547134]
[1757182979798,7.8824,4287.0,4286.9,0.004]
[1757182979799,8.46175284,4287.0,4286.9,0.004]
[1757182980704,8.10113495,4287.0,4286.9,0.004]
[1757182982312,4.17013495,4287.0,4286.9,0.004]
[1757182982490,8.10113495,4287.0,4286.9,0.004]
[1757182982691,9.14449576,4287.0,4286.9,0.004]
[1757182983587,5.21349576,4287.0,4286.9,0.004]
[1757182983788,9.14349576,4287.0,4286.9,0.004]
[1757182984420,9.93549576,4287.0,4286.9,0.004]
[1757182990596,12.2681293,4287.0,4286.9,0.004]
[1757182991803,9.93549576,4287.0,4286.9,0.004]
[1757182993244,9.44669576,4287.0,4286.9,0.004]
[1757182993547,2.91373495,4287.0,4286.9,0.3178]
[1757182993847,2.91373495,4287.0,4286.9,3.57428795]
[1757182993848,2.695,4287.0,4286.9,3.57428795]
[1757182994030,6.624,4287.0,4286.9,4.04848795]
[1757182995836,2.695,4287.0,4286.9,4.04848795]
[1757182996035,6.624,4287.0,4286.9,4.7011128]
[1757182997207,2.695,4287.0,4286.9,4.7011128]
[1757182997447,6.624,4287.0,4286.9,4.7011128]
[1757183001447,6.623,4287.0,4286.9,4.7011128]
[1757183004558,6.623,4287.0,4286.9,3.7773128]
[1757183005162,6.9363,4287.0,4286.9,3.4635128]
[1757183005458,7.4065,4287.0,4286.9,0.4782]
[1757183006021,7.4065,4287.0,4286.9,2.81088795]
[1757183007039,6.9363,4287.0,4286.9,2.81088795]
[1757183007582,7.4065,4287.0,4286.9,2.81088795]
[1757183008250,7.4065,4287.0,4286.9,0.4782]
[1757183008477,7.4065,4287.0,4286.9,0.004]
[1757183009840,7.8866,4287.0,4286.9,0.004]
[1757183010033,12.01861074,4287.0,4286.9,0.004]
[1757183011198,12.37966399,4287.0,4286.9,0.004]
[1757183011349,12.74028188,4287.0,4286.9,0.004]
[1757183011739,15.74028188,4287.0,4286.9,0.004]
[1757183012641,24.69852688,4287.0,4286.9,0.004]
[1757183012989,15.74028188,4287.0,4286.9,0.004]
[1757183013142,19.74345723,4287.0,4286.9,0.004]
[1757183013563,20.10941808,4287.0,4286.9,0.004]
[1757183014768,37.71336108,4287.0,4286.9,0.004]
[1757183014974,6.96235909,4286.9,4286.8,0.029]
[1757183015193,26.73200561,4286.9,4286.8,0.029]
[1757183015511,27.99560561,4286.9,4286.8,0.029]
[1757183016911,18.85506097,4286.9,4286.8,0.029]
[1757183017811,19.33888197,4286.9,4286.8,0.029]
[1757183018778,19.41910197,4286.9,4286.8,0.029]
[1757183019001,26.19262722,4286.9,4286.8,1e-08]
[1757183019204,3.12490563,4286.5,4286.4,0.004]
[1757183019513,10.5983945,4286.5,4286.4,0.004]
[1757183019679,12.56635988,4286.5,4286.4,0.004]
[1757183019879,12.65994212,4286.5,4286.4,0.004]
[1757183021282,6.12496005,4286.4,4286.3,0.004]
[1757183021579,7.34870626,4286.4,4286.3,0.004]
[1757183021799,6.12506891,4286.2,4286.1,0.004]
[1757183022005,12.06376146,4286.2,4286.1,0.004]
[1757183022205,13.24596146,4286.2,4286.1,0.004]
[1757183023017,12.78886146,4286.2,4286.1,0.004]
[1757183023213,13.57752146,4286.2,4286.1,0.004]
[1757183024112,14.39450421,4286.2,4286.1,0.004]
[1757183025818,13.94279196,4286.2,4286.1,0.004]
[1757183030346,13.51169196,4286.2,4286.1,0.004]
[1757183030556,13.51169196,4286.2,4286.1,0.3039]
[1757183030557,13.21769196,4286.2,4286.1,0.3039]
[1757183032438,13.21769196,4286.2,4286.1,1.2059]
[1757183033081,9.29269196,4286.2,4286.1,1.2059]
[1757183033237,12.06202632,4286.2,4286.1,1.2059]
[1757183034087,8.13802632,4286.2,4286.1,1.2059]
[1757183034258,12.06202632,4286.2,4286.1,1.2059]
[1757183034771,8.13802632,4286.2,4286.1,1.2059]
[1757183035277,12.06202632,4286.2,4286.1,1.2059]
[1757183035848,12.4280213,4286.2,4286.1,1.2059]
[1757183036162,8.5040213,4286.2,4286.1,1.2059]
[1757183036366,12.4280213,4286.2,4286.1,1.2059]
[1757183039583,12.06202632,4286.2,4286.1,1.2059]
[1757183039785,12.06202632,4286.2,4286.1,0.7732]
[1757183039967,12.06202632,4286.2,4286.1,1.2059]
[1757183042502,12.06202632,4286.2,4286.1,0.004]
[1757183042503,8.13802632,4286.2,4286.1,0.004]
[1757183042704,12.06102632,4286.2,4286.1,1.2059]
[1757183043660,12.06102632,4286.2,4286.1,0.3039]
[1757183044066,12.06102632,4286.2,4286.1,0.004]
[1757183045482,13.63363684,4286.2,4286.1,0.004]
[1757183047219,15.53750798,4286.2,4286.1,0.004]
[1757183047428,3.12512335,4286.1,4285.9,0.004]
[1757183047573,8.91730838,4286.1,4285.9,0.004]
[1757183047775,12.16203315,4286.1,4285.9,0.004]
[1757183048091,12.25561825,4286.1,4285.9,0.004]